[Event "December 12 Late 2023"]
[Site "https://www.chess.com"]
[Date "2023.12.12"]
[Round "5"]
[White "Yuan, Qingyu"]
[Black "Estrada Nieto, Julian"]
[Result "1-0"]
[Board "47"]
[TimeControl "180+1"]
[WhiteFideId "8609772"]
[BlackFideId "5101018"]
[WhiteElo "2783"]
[BlackElo "2545"]
[WhiteTeam "CHN"]
[BlackTeam "ESP"]
[WhiteClock "0:00:30"]
[BlackClock "0:00:12"]

1. e4 {[%clk 0:03:00]}  e5 {[%clk 0:02:59]} 2. Nf3 {[%clk 0:03:00]}  Nc6 {[%clk 0:03:00]} 3. Bb5 {[%clk 0:03:01]}  a6 {[%clk 0:02:59]} 4. Ba4 {[%clk 0:03:01]}  Nf6 {[%clk 0:02:59]} 5. d3 {[%clk 0:03:02]}  d6 {[%clk 0:02:58]} 6. c3 {[%clk 0:02:58]}  g6 {[%clk 0:02:58]} 7. O-O {[%clk 0:02:58]}  Bg7 {[%clk 0:02:58]} 8. Re1 {[%clk 0:02:59]}  O-O {[%clk 0:02:58]} 9. Nbd2 {[%clk 0:02:58]}  b5 {[%clk 0:02:57]} 10. Bc2 {[%clk 0:02:58]}  Re8 {[%clk 0:02:55]} 11. a4 {[%clk 0:02:51]}  Bb7 {[%clk 0:02:55]} 12. b4 {[%clk 0:02:43]}  d5 {[%clk 0:02:53]} 13. Nb3 {[%clk 0:02:40]}  dxe4 {[%clk 0:02:36]} 14. dxe4 {[%clk 0:02:40]}  Nd7 {[%clk 0:02:27]} 15. Qe2 {[%clk 0:02:30]}  bxa4 {[%clk 0:02:20]} 16. Rxa4 {[%clk 0:02:31]}  Nb6 {[%clk 0:02:15]} 17. Ra1 {[%clk 0:02:27]}  Nd7 {[%clk 0:01:57]} 18. Bg5 {[%clk 0:02:13]}  Bf6 {[%clk 0:01:56]} 19. Be3 {[%clk 0:02:10]}  Qe7 {[%clk 0:01:46]} 20. Bd3 {[%clk 0:02:07]}  Qe6 {[%clk 0:01:41]} 21. Bc4 {[%clk 0:02:04]}  Qe7 {[%clk 0:01:35]} 22. Bxa6 {[%clk 0:02:00]}  Bxa6 {[%clk 0:01:31]} 23. Rxa6 {[%clk 0:02:01]}  Rxa6 {[%clk 0:01:26]} 24. Qxa6 {[%clk 0:02:01]}  Qe6 {[%clk 0:01:26]} 25. Nfd2 {[%clk 0:01:54]}  Ndb8 {[%clk 0:01:08]} 26. Qb5 {[%clk 0:01:51]}  Rd8 {[%clk 0:01:06]} 27. h3 {[%clk 0:01:48]}  Nd7 {[%clk 0:01:02]} 28. Ra1 {[%clk 0:01:46]}  Rb8 {[%clk 0:00:54]} 29. Qd3 {[%clk 0:01:41]}  Nb6 {[%clk 0:00:50]} 30. Nc5 {[%clk 0:01:38]}  Qe7 {[%clk 0:00:49]} 31. Ra6 {[%clk 0:01:28]}  Kg7 {[%clk 0:00:44]} 32. Qb5 {[%clk 0:01:21]}  Qe8 {[%clk 0:00:43]} 33. Qf1 {[%clk 0:01:17]}  Nd8 {[%clk 0:00:39]} 34. Ra7 {[%clk 0:01:11]}  Qe7 {[%clk 0:00:33]} 35. Na6 {[%clk 0:01:07]}  Rb7 {[%clk 0:00:32]} 36. Rxb7 {[%clk 0:00:58]}  Nxb7 {[%clk 0:00:31]} 37. Nc4 {[%clk 0:00:56]}  Nd7 {[%clk 0:00:28]} 38. Nxc7 {[%clk 0:00:53]}  Ndc5 {[%clk 0:00:23]} 39. Nd5 {[%clk 0:00:52]}  Qe6 {[%clk 0:00:21]} 40. bxc5 {[%clk 0:00:53]}  Bd8 {[%clk 0:00:17]} 41. Qb1 {[%clk 0:00:48]}  Na5 {[%clk 0:00:12]} 42. Nxa5 {[%clk 0:00:39]}  Bxa5 {[%clk 0:00:12]} 43. Qb5 {[%clk 0:00:38]}  Bd8 {[%clk 0:00:12]} 44. c6 {[%clk 0:00:37]}  f5 {[%clk 0:00:12]} 45. Qb7+ {[%clk 0:00:37]}  Kg8 {[%clk 0:00:10]} 46. Bh6 {[%clk 0:00:37]}  Qf7 {[%clk 0:00:07]} 47. Qxf7+ {[%clk 0:00:37]}  Kxf7 {[%clk 0:00:07]} 48. c7 {[%clk 0:00:38]}  Bxc7 {[%clk 0:00:08]} 49. Nxc7 {[%clk 0:00:39]}  f4 {[%clk 0:00:08]} 50. h4 {[%clk 0:00:38]}  Ke7 {[%clk 0:00:07]} 51. Nd5+ {[%clk 0:00:38]}  Ke6 {[%clk 0:00:07]} 52. f3 {[%clk 0:00:39]}  Kd7 {[%clk 0:00:06]} 53. Kf1 {[%clk 0:00:39]}  Kc6 {[%clk 0:00:07]} 54. Ke2 {[%clk 0:00:40]}  Kc5 {[%clk 0:00:08]} 55. Kd3 {[%clk 0:00:41]}  Kd6 {[%clk 0:00:08]} 56. Kc4 {[%clk 0:00:40]}  Ke6 {[%clk 0:00:09]} 57. Kb5 {[%clk 0:00:40]}  Kf7 {[%clk 0:00:09]} 58. Kb6 {[%clk 0:00:40]}  Kg8 {[%clk 0:00:10]} 59. Kb7 {[%clk 0:00:40]}  Kh8 {[%clk 0:00:11]} 60. c4 {[%clk 0:00:40]}  g5 {[%clk 0:00:12]} 61. hxg5 {[%clk 0:00:39]}  Kg8 {[%clk 0:00:12]} 62. c5 {[%clk 0:00:40]}  Kf7 {[%clk 0:00:12]} 63. c6 {[%clk 0:00:40]}  Kg6 {[%clk 0:00:13]} 64. c7 {[%clk 0:00:41]}  Kh5 {[%clk 0:00:13]} 65. c8=Q {[%clk 0:00:32]}  Kg6 {[%clk 0:00:12]} 66. Qe8# {[%clk 0:00:30]} 1-0

[Event "December 12 Late 2023"]
[Site "https://www.chess.com"]
[Date "2023.12.12"]
[Round "5"]
[White "Grutter, Tim"]
[Black "Zou, Chen"]
[Result "0-1"]
[Board "48"]
[TimeControl "180+1"]
[WhiteFideId "1057472"]
[BlackFideId "8610959"]
[WhiteElo "2526"]
[BlackElo "2753"]
[WhiteTeam "NED"]
[BlackTeam "CHN"]
[WhiteClock "0:00:00"]
[BlackClock "0:00:37"]

1. e4 {[%clk 0:03:00]}  c5 {[%clk 0:02:54]} 2. Nf3 {[%clk 0:03:00]}  Nc6 {[%clk 0:02:53]} 3. d3 {[%clk 0:02:55]}  g6 {[%clk 0:02:53]} 4. g3 {[%clk 0:02:54]}  Bg7 {[%clk 0:02:48]} 5. Bg2 {[%clk 0:02:54]}  d6 {[%clk 0:02:48]} 6. O-O {[%clk 0:02:53]}  e6 {[%clk 0:02:47]} 7. c3 {[%clk 0:02:46]}  Nge7 {[%clk 0:02:47]} 8. d4 {[%clk 0:02:44]}  cxd4 {[%clk 0:02:48]} 9. cxd4 {[%clk 0:02:44]}  O-O {[%clk 0:02:49]} 10. Nc3 {[%clk 0:02:38]}  b6 {[%clk 0:02:37]} 11. Be3 {[%clk 0:02:30]}  Bb7 {[%clk 0:02:35]} 12. Qd2 {[%clk 0:02:27]}  Re8 {[%clk 0:02:29]} 13. Rac1 {[%clk 0:02:24]}  Rc8 {[%clk 0:02:25]} 14. Rfd1 {[%clk 0:02:24]}  Qd7 {[%clk 0:02:25]} 15. b3 {[%clk 0:02:14]}  Red8 {[%clk 0:01:53]} 16. Bh3 {[%clk 0:01:48]}  d5 {[%clk 0:01:50]} 17. e5 {[%clk 0:01:38]}  Nf5 {[%clk 0:01:45]} 18. Bxf5 {[%clk 0:01:33]}  exf5 {[%clk 0:01:46]} 19. Bh6 {[%clk 0:01:23]}  Ba6 {[%clk 0:01:37]} 20. Bg5 {[%clk 0:01:02]}  Re8 {[%clk 0:01:33]} 21. Nh4 {[%clk 0:00:44]}  Nd8 {[%clk 0:01:30]} 22. Bxd8 {[%clk 0:00:39]}  Rcxd8 {[%clk 0:01:28]} 23. Ng2 {[%clk 0:00:40]}  Bb7 {[%clk 0:01:27]} 24. Qd3 {[%clk 0:00:34]}  Bf8 {[%clk 0:01:26]} 25. Qb5 {[%clk 0:00:30]}  Bc6 {[%clk 0:01:25]} 26. Qa6 {[%clk 0:00:29]}  Rc8 {[%clk 0:01:23]} 27. Ne3 {[%clk 0:00:26]}  Bh6 {[%clk 0:01:21]} 28. f4 {[%clk 0:00:25]}  Bf8 {[%clk 0:01:21]} 29. Ncxd5 {[%clk 0:00:21]}  Bg7 {[%clk 0:01:00]} 30. Nc3 {[%clk 0:00:16]}  Bf3 {[%clk 0:00:59]} 31. Rd2 {[%clk 0:00:12]}  Rc7 {[%clk 0:00:49]} 32. d5 {[%clk 0:00:10]}  Rec8 {[%clk 0:00:49]} 33. Rdc2 {[%clk 0:00:09]}  Bf8 {[%clk 0:00:45]} 34. d6 {[%clk 0:00:09]}  Bxd6 {[%clk 0:00:37]} 35. exd6 {[%clk 0:00:08]}  Qxd6 {[%clk 0:00:37]} 36. Nb5 {[%clk 0:00:06]}  Qd3 {[%clk 0:00:38]} 37. Rxc7 {[%clk 0:00:00]}  Qxe3+ {[%clk 0:00:37]} 0-1

[Event "December 12 Late 2023"]
[Site "https://www.chess.com"]
[Date "2023.12.12"]
[Round "5"]
[White "Flash_BJ"]
[Black "Boyer, Mahel"]
[Result "0-1"]
[Board "53"]
[TimeControl "180+1"]
[BlackFideId "45102422"]
[WhiteElo "2221"]
[BlackElo "2620"]
[BlackTeam "FRA"]
[WhiteClock "0:00:00"]
[BlackClock "0:01:33"]

1. e4 {[%clk 0:02:53]}  Nc6 {[%clk 0:02:54]} 2. d3 {[%clk 0:02:49]}  d5 {[%clk 0:02:55]} 3. Nd2 {[%clk 0:02:49]}  e5 {[%clk 0:02:55]} 4. Ngf3 {[%clk 0:02:49]}  f6 {[%clk 0:02:53]} 5. c3 {[%clk 0:02:49]}  Be6 {[%clk 0:02:52]} 6. Be2 {[%clk 0:02:48]}  Nge7 {[%clk 0:02:52]} 7. b4 {[%clk 0:02:44]}  Ng6 {[%clk 0:02:50]} 8. b5 {[%clk 0:02:40]}  Na5 {[%clk 0:02:43]} 9. Qa4 {[%clk 0:02:32]}  b6 {[%clk 0:02:34]} 10. Nb3 {[%clk 0:02:25]}  Nb7 {[%clk 0:02:30]} 11. h4 {[%clk 0:02:14]}  h5 {[%clk 0:02:29]} 12. Be3 {[%clk 0:02:01]}  Qd7 {[%clk 0:02:29]} 13. c4 {[%clk 0:01:59]}  d4 {[%clk 0:02:25]} 14. Bd2 {[%clk 0:01:57]}  a5 {[%clk 0:02:25]} 15. Nc1 {[%clk 0:01:40]}  Bd6 {[%clk 0:02:13]} 16. Qc2 {[%clk 0:01:39]}  O-O {[%clk 0:02:12]} 17. a4 {[%clk 0:01:39]}  Bb4 {[%clk 0:02:09]} 18. Nb3 {[%clk 0:01:36]}  Nf4 {[%clk 0:02:05]} 19. Bf1 {[%clk 0:01:27]}  Bg4 {[%clk 0:02:00]} 20. O-O-O {[%clk 0:01:17]}  Qd6 {[%clk 0:01:51]} 21. Kb1 {[%clk 0:01:15]}  Bxf3 {[%clk 0:01:45]} 22. gxf3 {[%clk 0:01:14]}  Bxd2 {[%clk 0:01:46]} 23. Qxd2 {[%clk 0:01:04]}  Qb4 {[%clk 0:01:43]} 24. Qa2 {[%clk 0:00:57]}  Nc5 {[%clk 0:01:42]} 25. Kc2 {[%clk 0:00:00]}  Qc3+ {[%clk 0:01:33]} 0-1

[Event "December 12 Late 2023"]
[Site "https://www.chess.com"]
[Date "2023.12.12"]
[Round "5"]
[White "Tapie Amione, Pablo Adib"]
[Black "Hong, Andrew"]
[Result "0-1"]
[Board "57"]
[TimeControl "180+1"]
[WhiteFideId "5107180"]
[BlackFideId "2099438"]
[WhiteElo "2515"]
[BlackElo "2815"]
[WhiteTeam "MEX"]
[BlackTeam "USA"]
[WhiteClock "0:01:11"]
[BlackClock "0:02:17"]

1. e4 {[%clk 0:03:00]}  e5 {[%clk 0:02:57]} 2. Nf3 {[%clk 0:03:00]}  Nc6 {[%clk 0:02:54]} 3. Bb5 {[%clk 0:03:00]}  a6 {[%clk 0:02:53]} 4. Ba4 {[%clk 0:03:01]}  d6 {[%clk 0:02:53]} 5. c3 {[%clk 0:03:00]}  Nf6 {[%clk 0:02:53]} 6. Bxc6+ {[%clk 0:03:00]}  bxc6 {[%clk 0:02:53]} 7. d3 {[%clk 0:02:59]}  c5 {[%clk 0:02:51]} 8. c4 {[%clk 0:02:59]}  Bg4 {[%clk 0:02:49]} 9. Qa4+ {[%clk 0:02:57]}  Qd7 {[%clk 0:02:47]} 10. Qxd7+ {[%clk 0:02:57]}  Nxd7 {[%clk 0:02:48]} 11. Nfd2 {[%clk 0:02:56]}  Be7 {[%clk 0:02:46]} 12. Nf1 {[%clk 0:02:57]}  h5 {[%clk 0:02:46]} 13. Nc3 {[%clk 0:02:55]}  c6 {[%clk 0:02:44]} 14. h4 {[%clk 0:02:48]}  Nf8 {[%clk 0:02:42]} 15. f3 {[%clk 0:02:46]}  Bd7 {[%clk 0:02:42]} 16. Ne3 {[%clk 0:02:41]}  Ne6 {[%clk 0:02:41]} 17. g3 {[%clk 0:02:40]}  Nd4 {[%clk 0:02:41]} 18. Kf2 {[%clk 0:02:40]}  f5 {[%clk 0:02:40]} 19. exf5 {[%clk 0:02:34]}  Nxf5 {[%clk 0:02:40]} 20. Ne4 {[%clk 0:02:33]}  Nd4 {[%clk 0:02:39]} 21. Kg2 {[%clk 0:02:14]}  O-O {[%clk 0:02:35]} 22. Rf1 {[%clk 0:02:13]}  Rfb8 {[%clk 0:02:22]} 23. Rf2 {[%clk 0:01:52]}  a5 {[%clk 0:02:21]} 24. Nc3 {[%clk 0:01:49]}  a4 {[%clk 0:02:19]} 25. Nc2 {[%clk 0:01:48]}  Bf5 {[%clk 0:02:16]} 26. Nxd4 {[%clk 0:01:46]}  cxd4 {[%clk 0:02:16]} 27. Ne4 {[%clk 0:01:46]}  d5 {[%clk 0:02:16]} 28. cxd5 {[%clk 0:01:16]}  cxd5 {[%clk 0:02:17]} 29. Bg5 {[%clk 0:01:17]}  dxe4 {[%clk 0:02:17]} 30. Bxe7 {[%clk 0:01:11]}  e3 {[%clk 0:02:17]} 0-1

[Event "December 12 Late 2023"]
[Site "https://www.chess.com"]
[Date "2023.12.12"]
[Round "5"]
[White "Makaraci, Tunahan"]
[Black "Troff, Kayden"]
[Result "0-1"]
[Board "60"]
[TimeControl "180+1"]
[WhiteFideId "6356559"]
[BlackFideId "2047896"]
[WhiteElo "2503"]
[BlackElo "2773"]
[WhiteTeam "TUR"]
[BlackTeam "USA"]
[WhiteClock "0:00:00"]
[BlackClock "0:00:24"]

1. e4 {[%clk 0:03:00]}  c5 {[%clk 0:02:59]} 2. c3 {[%clk 0:03:00]}  g6 {[%clk 0:02:59]} 3. Nf3 {[%clk 0:02:59]}  Bg7 {[%clk 0:02:58]} 4. d4 {[%clk 0:02:59]}  cxd4 {[%clk 0:02:59]} 5. cxd4 {[%clk 0:03:00]}  d5 {[%clk 0:02:59]} 6. e5 {[%clk 0:03:00]}  Nc6 {[%clk 0:02:59]} 7. Bb5 {[%clk 0:02:59]}  Nh6 {[%clk 0:02:59]} 8. O-O {[%clk 0:02:54]}  O-O {[%clk 0:02:59]} 9. Bxc6 {[%clk 0:02:53]}  bxc6 {[%clk 0:02:59]} 10. Nbd2 {[%clk 0:02:53]}  f6 {[%clk 0:02:56]} 11. exf6 {[%clk 0:02:50]}  Rxf6 {[%clk 0:02:55]} 12. Ne5 {[%clk 0:02:44]}  Nf7 {[%clk 0:02:55]} 13. Ndf3 {[%clk 0:02:42]}  Bf5 {[%clk 0:02:52]} 14. Nxf7 {[%clk 0:02:29]}  Rxf7 {[%clk 0:02:50]} 15. h3 {[%clk 0:02:19]}  c5 {[%clk 0:01:44]} 16. dxc5 {[%clk 0:02:15]}  e5 {[%clk 0:01:44]} 17. Bg5 {[%clk 0:02:10]}  Qd7 {[%clk 0:01:40]} 18. Rc1 {[%clk 0:02:00]}  Qc6 {[%clk 0:01:40]} 19. Re1 {[%clk 0:01:59]}  Re8 {[%clk 0:01:38]} 20. b4 {[%clk 0:01:55]}  a6 {[%clk 0:01:33]} 21. Qb3 {[%clk 0:01:48]}  d4 {[%clk 0:01:26]} 22. Nxd4 {[%clk 0:01:45]}  exd4 {[%clk 0:01:24]} 23. Rxe8+ {[%clk 0:01:44]}  Qxe8 {[%clk 0:01:25]} 24. a4 {[%clk 0:01:36]}  Bd7 {[%clk 0:00:57]} 25. Qc4 {[%clk 0:01:11]}  Bxa4 {[%clk 0:00:51]} 26. Qxa6 {[%clk 0:01:11]}  Bb5 {[%clk 0:00:48]} 27. Qb6 {[%clk 0:01:08]}  Bc6 {[%clk 0:00:48]} 28. b5 {[%clk 0:00:47]}  Bd5 {[%clk 0:00:26]} 29. c6 {[%clk 0:00:45]}  Qe4 {[%clk 0:00:24]} 30. f3 {[%clk 0:00:43]}  Rxf3 {[%clk 0:00:23]} 31. gxf3 {[%clk 0:00:37]}  Qxf3 {[%clk 0:00:24]} 32. Qb8+ {[%clk 0:00:22]}  Bf8 {[%clk 0:00:24]} 33. Qh2 {[%clk 0:00:00]}  Bd6 {[%clk 0:00:24]} 0-1

[Event "December 12 Late 2023"]
[Site "https://www.chess.com"]
[Date "2023.12.12"]
[Round "5"]
[White "Matinian, Nikita"]
[Black "Yandarbiev, Ruslan"]
[Result "1-0"]
[Board "61"]
[TimeControl "180+1"]
[WhiteFideId "24129100"]
[BlackFideId "4115023"]
[WhiteElo "2766"]
[BlackElo "2500"]
[WhiteTeam "FID"]
[BlackTeam "RUS"]
[WhiteClock "0:02:31"]
[BlackClock "0:01:00"]

1. e4 {[%clk 0:03:00]}  e5 {[%clk 0:02:57]} 2. Nf3 {[%clk 0:03:01]}  Nc6 {[%clk 0:02:57]} 3. Bb5 {[%clk 0:03:02]}  g6 {[%clk 0:02:57]} 4. Nc3 {[%clk 0:03:01]}  Bg7 {[%clk 0:02:57]} 5. d4 {[%clk 0:02:57]}  Nxd4 {[%clk 0:02:49]} 6. Bc4 {[%clk 0:02:57]}  c6 {[%clk 0:02:34]} 7. Bg5 {[%clk 0:02:54]}  Ne7 {[%clk 0:02:14]} 8. h4 {[%clk 0:02:53]}  h6 {[%clk 0:02:14]} 9. Be3 {[%clk 0:02:53]}  Ne6 {[%clk 0:02:04]} 10. Qd6 {[%clk 0:02:51]}  Qc7 {[%clk 0:01:59]} 11. Qxc7 {[%clk 0:02:43]}  Nxc7 {[%clk 0:02:00]} 12. a4 {[%clk 0:02:43]}  d5 {[%clk 0:01:56]} 13. exd5 {[%clk 0:02:43]}  cxd5 {[%clk 0:01:57]} 14. Nb5 {[%clk 0:02:43]}  Nxb5 {[%clk 0:01:47]} 15. Bxb5+ {[%clk 0:02:44]}  Bd7 {[%clk 0:01:48]} 16. Bc5 {[%clk 0:02:45]}  Nc6 {[%clk 0:01:44]} 17. O-O-O {[%clk 0:02:44]}  Be6 {[%clk 0:01:43]} 18. Rhe1 {[%clk 0:02:40]}  f6 {[%clk 0:01:40]} 19. Nd4 {[%clk 0:02:39]}  Bd7 {[%clk 0:01:37]} 20. f4 {[%clk 0:02:38]}  Nxd4 {[%clk 0:01:30]} 21. Bxd4 {[%clk 0:02:38]}  Bxb5 {[%clk 0:01:24]} 22. fxe5 {[%clk 0:02:32]}  f5 {[%clk 0:01:03]} 23. axb5 {[%clk 0:02:31]}  Kd7 {[%clk 0:01:00]} 24. e6+ {[%clk 0:02:31]} 1-0

[Event "December 12 Late 2023"]
[Site "https://www.chess.com"]
[Date "2023.12.12"]
[Round "5"]
[White "ChessSG1"]
[Black "Rastbod, Ali"]
[Result "0-1"]
[Board "63"]
[TimeControl "180+1"]
[BlackFideId "12567477"]
[WhiteElo "2488"]
[BlackElo "2736"]
[BlackTeam "IRI"]
[WhiteClock "0:00:00"]
[BlackClock "0:01:05"]

1. Nf3 {[%clk 0:03:00]}  c5 {[%clk 0:02:58]} 2. c4 {[%clk 0:02:59]}  Nc6 {[%clk 0:02:56]} 3. Nc3 {[%clk 0:02:59]}  g6 {[%clk 0:02:52]} 4. g3 {[%clk 0:02:56]}  Bg7 {[%clk 0:02:51]} 5. Bg2 {[%clk 0:02:56]}  d6 {[%clk 0:02:51]} 6. O-O {[%clk 0:02:55]}  Bf5 {[%clk 0:02:52]} 7. d3 {[%clk 0:02:52]}  Qd7 {[%clk 0:02:52]} 8. Bd2 {[%clk 0:02:38]}  Bh3 {[%clk 0:02:48]} 9. a3 {[%clk 0:02:34]}  h5 {[%clk 0:02:47]} 10. Bxh3 {[%clk 0:02:20]}  Qxh3 {[%clk 0:02:45]} 11. Ng5 {[%clk 0:02:21]}  Qd7 {[%clk 0:02:43]} 12. h4 {[%clk 0:02:20]}  Nh6 {[%clk 0:02:41]} 13. Rb1 {[%clk 0:02:11]}  Nf5 {[%clk 0:02:34]} 14. Nf3 {[%clk 0:02:04]}  O-O {[%clk 0:02:26]} 15. b4 {[%clk 0:02:02]}  b6 {[%clk 0:02:24]} 16. Nd5 {[%clk 0:01:31]}  e6 {[%clk 0:02:21]} 17. Ne3 {[%clk 0:01:30]}  Rfe8 {[%clk 0:02:12]} 18. Nxf5 {[%clk 0:01:15]}  exf5 {[%clk 0:02:10]} 19. Ne1 {[%clk 0:01:04]}  Ne5 {[%clk 0:02:05]} 20. Ng2 {[%clk 0:00:58]}  Nc6 {[%clk 0:01:33]} 21. Nf4 {[%clk 0:00:51]}  Rac8 {[%clk 0:01:32]} 22. e3 {[%clk 0:00:32]}  Qd8 {[%clk 0:01:28]} 23. Nd5 {[%clk 0:00:29]}  Ne7 {[%clk 0:01:28]} 24. Qf3 {[%clk 0:00:21]}  Nxd5 {[%clk 0:01:27]} 25. Qxd5 {[%clk 0:00:21]}  Qe7 {[%clk 0:01:24]} 26. Rbc1 {[%clk 0:00:21]}  Qe6 {[%clk 0:01:25]} 27. Qxe6 {[%clk 0:00:20]}  fxe6 {[%clk 0:01:26]} 28. Kg2 {[%clk 0:00:21]}  Kf7 {[%clk 0:01:24]} 29. Kf3 {[%clk 0:00:19]}  Red8 {[%clk 0:01:25]} 30. Bc3 {[%clk 0:00:19]}  d5 {[%clk 0:01:18]} 31. Bxg7 {[%clk 0:00:19]}  Kxg7 {[%clk 0:01:19]} 32. cxd5 {[%clk 0:00:18]}  Rxd5 {[%clk 0:01:20]} 33. Rc3 {[%clk 0:00:18]}  Rcd8 {[%clk 0:01:07]} 34. bxc5 {[%clk 0:00:18]}  Rxc5 {[%clk 0:01:07]} 35. Rxc5 {[%clk 0:00:16]}  bxc5 {[%clk 0:01:08]} 36. Ke2 {[%clk 0:00:15]}  Rb8 {[%clk 0:01:08]} 37. Rc1 {[%clk 0:00:13]}  Rb2+ {[%clk 0:01:07]} 38. Kf3 {[%clk 0:00:12]}  Rb5 {[%clk 0:01:06]} 39. a4 {[%clk 0:00:08]}  Ra5 {[%clk 0:01:06]} 40. Rc4 {[%clk 0:00:08]}  Kf6 {[%clk 0:01:07]} 41. Ke2 {[%clk 0:00:06]}  Ke5 {[%clk 0:01:07]} 42. Kd2 {[%clk 0:00:06]}  Kd5 {[%clk 0:01:08]} 43. Kc3 {[%clk 0:00:06]}  Ra6 {[%clk 0:01:08]} 44. d4 {[%clk 0:00:05]}  cxd4+ {[%clk 0:01:09]} 45. Rxd4+ {[%clk 0:00:05]}  Ke5 {[%clk 0:01:08]} 46. Rd7 {[%clk 0:00:05]}  Ke4 {[%clk 0:01:04]} 47. Rg7 {[%clk 0:00:04]}  e5 {[%clk 0:01:05]} 48. Kd2 {[%clk 0:00:03]}  Kf3 {[%clk 0:01:05]} 49. Re7 {[%clk 0:00:00]}  e4 {[%clk 0:01:05]} 0-1

[Event "December 12 Late 2023"]
[Site "https://www.chess.com"]
[Date "2023.12.12"]
[Round "5"]
[White "Pakleza, Zbigniew"]
[Black "Cervantes Landeiro, Thalia"]
[Result "1-0"]
[Board "64"]
[TimeControl "180+1"]
[WhiteFideId "1119290"]
[BlackFideId "3520498"]
[WhiteElo "2707"]
[BlackElo "2488"]
[WhiteTeam "POL"]
[BlackTeam "USA"]
[WhiteClock "0:00:08"]
[BlackClock "0:00:07"]

1. d4 {[%clk 0:03:00]}  Nf6 {[%clk 0:02:59]} 2. Nf3 {[%clk 0:03:01]}  g6 {[%clk 0:02:59]} 3. Bf4 {[%clk 0:03:01]}  Bg7 {[%clk 0:02:59]} 4. e3 {[%clk 0:03:02]}  d5 {[%clk 0:03:00]} 5. Be2 {[%clk 0:02:58]}  O-O {[%clk 0:03:00]} 6. O-O {[%clk 0:02:59]}  c5 {[%clk 0:03:00]} 7. c3 {[%clk 0:02:59]}  b6 {[%clk 0:03:00]} 8. Nbd2 {[%clk 0:02:58]}  Bb7 {[%clk 0:03:01]} 9. h3 {[%clk 0:02:58]}  Nc6 {[%clk 0:03:01]} 10. Bh2 {[%clk 0:02:58]}  Nd7 {[%clk 0:03:02]} 11. Nb3 {[%clk 0:02:57]}  e5 {[%clk 0:02:59]} 12. a4 {[%clk 0:02:42]}  cxd4 {[%clk 0:02:51]} 13. cxd4 {[%clk 0:02:34]}  e4 {[%clk 0:02:15]} 14. Ne1 {[%clk 0:02:34]}  f5 {[%clk 0:02:08]} 15. a5 {[%clk 0:02:29]}  bxa5 {[%clk 0:02:04]} 16. Qd2 {[%clk 0:02:21]}  g5 {[%clk 0:02:00]} 17. Nxa5 {[%clk 0:02:17]}  Nxa5 {[%clk 0:02:00]} 18. Ra3 {[%clk 0:02:17]}  Nc4 {[%clk 0:01:54]} 19. Bxc4 {[%clk 0:01:58]}  dxc4 {[%clk 0:01:55]} 20. Nc2 {[%clk 0:01:55]}  Nb6 {[%clk 0:01:53]} 21. Rfa1 {[%clk 0:01:53]}  a6 {[%clk 0:01:50]} 22. Ra5 {[%clk 0:01:51]}  Rc8 {[%clk 0:01:28]} 23. Qb4 {[%clk 0:01:40]}  f4 {[%clk 0:01:23]} 24. Rc5 {[%clk 0:01:26]}  Qd6 {[%clk 0:00:43]} 25. Rxg5 {[%clk 0:01:21]}  Qxb4 {[%clk 0:00:42]} 26. Nxb4 {[%clk 0:01:21]}  h6 {[%clk 0:00:35]} 27. Rg6 {[%clk 0:01:18]}  Rf6 {[%clk 0:00:26]} 28. Rxf6 {[%clk 0:01:18]}  Bxf6 {[%clk 0:00:27]} 29. Bxf4 {[%clk 0:01:18]}  Ra8 {[%clk 0:00:19]} 30. Bxh6 {[%clk 0:01:14]}  a5 {[%clk 0:00:18]} 31. Nc2 {[%clk 0:01:07]}  a4 {[%clk 0:00:18]} 32. Bf4 {[%clk 0:01:03]}  Nd5 {[%clk 0:00:18]} 33. Bd6 {[%clk 0:01:02]}  Be7 {[%clk 0:00:17]} 34. Ba3 {[%clk 0:00:58]}  Bxa3 {[%clk 0:00:17]} 35. Nxa3 {[%clk 0:00:58]}  c3 {[%clk 0:00:15]} 36. bxc3 {[%clk 0:00:53]}  Nxc3 {[%clk 0:00:16]} 37. g4 {[%clk 0:00:54]}  Bd5 {[%clk 0:00:16]} 38. Kg2 {[%clk 0:00:53]}  Bb3 {[%clk 0:00:14]} 39. Rc1 {[%clk 0:00:47]}  Na2 {[%clk 0:00:13]} 40. Rc7 {[%clk 0:00:43]}  Nb4 {[%clk 0:00:13]} 41. h4 {[%clk 0:00:41]}  Nd3 {[%clk 0:00:09]} 42. g5 {[%clk 0:00:29]}  Rf8 {[%clk 0:00:09]} 43. g6 {[%clk 0:00:24]}  Rxf2+ {[%clk 0:00:09]} 44. Kg3 {[%clk 0:00:24]}  Rf3+ {[%clk 0:00:09]} 45. Kg4 {[%clk 0:00:24]}  Nf2+ {[%clk 0:00:08]} 46. Kg5 {[%clk 0:00:24]}  Nh3+ {[%clk 0:00:06]} 47. Kh6 {[%clk 0:00:23]}  Nf2 {[%clk 0:00:04]} 48. Nb5 {[%clk 0:00:13]}  Ng4+ {[%clk 0:00:04]} 49. Kg5 {[%clk 0:00:13]}  Nf6 {[%clk 0:00:03]} 50. Nd6 {[%clk 0:00:10]}  Be6 {[%clk 0:00:01]} 51. h5 {[%clk 0:00:08]}  Kf8 {[%clk 0:00:01]} 52. Ra7 {[%clk 0:00:07]}  Ne8 {[%clk 0:00:01]} 53. Ra8 {[%clk 0:00:06]}  Bd7 {[%clk 0:00:02]} 54. h6 {[%clk 0:00:05]}  Rg3+ {[%clk 0:00:01]} 55. Kh5 {[%clk 0:00:04]}  Rh3+ {[%clk 0:00:01]} 56. Kg5 {[%clk 0:00:05]}  Rg3+ {[%clk 0:00:02]} 57. Kh5 {[%clk 0:00:04]}  Ke7 {[%clk 0:00:02]} 58. h7 {[%clk 0:00:02]}  Rh3+ {[%clk 0:00:02]} 59. Kg5 {[%clk 0:00:02]}  Rg3+ {[%clk 0:00:03]} 60. Kh6 {[%clk 0:00:01]}  Nxd6 {[%clk 0:00:02]} 61. h8=Q {[%clk 0:00:01]}  Rh3+ {[%clk 0:00:03]} 62. Kg5 {[%clk 0:00:01]}  Rxh8 {[%clk 0:00:03]} 63. Rxh8 {[%clk 0:00:02]}  Ne8 {[%clk 0:00:03]} 64. Kh6 {[%clk 0:00:01]}  a3 {[%clk 0:00:04]} 65. g7 {[%clk 0:00:01]}  Nxg7 {[%clk 0:00:03]} 66. Kxg7 {[%clk 0:00:02]}  a2 {[%clk 0:00:04]} 67. Rh1 {[%clk 0:00:02]}  Be6 {[%clk 0:00:05]} 68. Ra1 {[%clk 0:00:02]}  Bb3 {[%clk 0:00:05]} 69. Kg6 {[%clk 0:00:02]}  Kd6 {[%clk 0:00:06]} 70. Kf5 {[%clk 0:00:03]}  Kd5 {[%clk 0:00:07]} 71. Kf4 {[%clk 0:00:03]}  Bc4 {[%clk 0:00:06]} 72. Rc1 {[%clk 0:00:03]}  Bb3 {[%clk 0:00:06]} 73. Kf5 {[%clk 0:00:03]}  Bc2 {[%clk 0:00:07]} 74. Ra1 {[%clk 0:00:03]}  Bb1 {[%clk 0:00:07]} 75. Kf4 {[%clk 0:00:04]}  Kc4 {[%clk 0:00:08]} 76. Ke5 {[%clk 0:00:04]}  Kb3 {[%clk 0:00:08]} 77. d5 {[%clk 0:00:05]}  Kb2 {[%clk 0:00:09]} 78. Rxa2+ {[%clk 0:00:05]}  Bxa2 {[%clk 0:00:05]} 79. d6 {[%clk 0:00:06]}  Kc3 {[%clk 0:00:05]} 80. d7 {[%clk 0:00:06]}  Kd3 {[%clk 0:00:06]} 81. Kf4 {[%clk 0:00:06]}  Ke2 {[%clk 0:00:05]} 82. d8=Q {[%clk 0:00:07]}  Kf2 {[%clk 0:00:06]} 83. Qd4 {[%clk 0:00:07]}  Bb1 {[%clk 0:00:06]} 84. Qd2+ {[%clk 0:00:07]}  Kf1 {[%clk 0:00:06]} 85. Kg3 {[%clk 0:00:08]}  Bd3 {[%clk 0:00:07]} 86. Qf2# {[%clk 0:00:08]} 1-0